[Event "Djerba Festival Blitz 2025"]
[Site "Djerba"]
[Date "2025.02.21"]
[Round "5.12"]
[White "Zouaghi, Ahmed"]
[Black "Papaux, Steve"]
[Result "1/2-1/2"]
[ECO "C45"]
[WhiteElo "1919"]
[BlackElo "2204"]
[PlyCount "102"]
[EventDate "2025.02.15"]
[EventType "swiss"]
[EventCountry "TUN"]
[TimeControl "180+3"]

1. e4 {[%emt 0:00:02]} e5 {[%emt 0:00:06]} 2. Nf3 {[%emt 0:00:02]} Nc6 {[%emt 0:03:03]} 3. d4 exd4 {[%emt 0:00:00]} 4. Nxd4 {[%emt 0:00:03]} Bc5 {[%emt 0:00:00]} 5. Nb3 {[%emt 0:00:02]} Bb6 {[%emt 0:00:00]} 6. Nc3 {[%emt 0:00:02]} Nf6 {[%emt 0:00:00]} 7. Qe2 {[%emt 0:00:02]} O-O {[%emt 0:00:00]} 8. Bg5 {[%emt 0:00:01]} h6 {[%emt 0:00:00]} 9. Bh4 {[%emt 0:00:02]} d5 {[%emt 0:00:00]} 10. O-O-O {[%emt 0:00:24]} d4 {[%emt 0:00:00]} 11. Nd5 {[%emt 0:00:55]} g5 {[%emt 0:00:00]} 12. Nxf6+ Qxf6 13. Bg3 {[%emt 0:02:07]} a5 {[%emt 0:00:00]} 14. a4 {[%emt 0:00:00]} Be6 {[%emt 0:00:00]} 15. h4 {[%emt 0:00:00]} g4 {[%emt 0:00:00]} 16. f3 {[%emt 0:00:00]} Nb4 {[%emt 0:00:00]} 17. Qb5 {[%emt 0:00:00]} Bxb3 18. cxb3 {[%emt 0:00:00]} gxf3 {[%emt 0:00:00]} 19. gxf3 Qxf3 {[%emt 0:00:00]} 20. Be2 {[%emt 0:00:00]} Qxb3 {[%emt 0:00:00]} 21. Qc4 {[%emt 0:00:01]} Qxc4+ 22. Bxc4 {[%emt 0:00:02]} Kh7 {[%emt 0:00:19]} 23. Rhf1 {[%emt 0:00:08]} f6 {[%emt 0:00:22]} 24. Be6 {[%emt 0:00:01]} Nc6 {[%emt 0:00:09]} 25. Bf5+ {[%emt 0:00:05]} Kh8 {[%emt 0:00:03]} 26. Bf4 {[%emt 0:00:04]} Ne5 {[%emt 0:00:03]} 27. Bxh6 {[%emt 0:00:21]} Rg8 28. Rg1 {[%emt 0:00:00]} d3 {[%emt 0:00:07]} 29. Rxg8+ Rxg8 {[%emt 0:00:02]} 30. Bf4 {[%emt 0:00:02]} Rd8 {[%emt 0:00:08]} 31. Kd2 {[%emt 0:00:06]} Nc4+ {[%emt 0:00:06]} 32. Kc3 {[%emt 0:00:02]} Ne5 {[%emt 0:00:05]} 33. Bxe5 {[%emt 0:00:02]} fxe5 {[%emt 0:00:02]} 34. Rxd3 {[%emt 0:00:02]} Bd4+ {[%emt 0:00:02]} 35. Kc2 {[%emt 0:00:04]} Rd6 {[%emt 0:00:02]} 36. h5 {[%emt 0:00:04]} Rb6 {[%emt 0:00:02]} 37. b3 {[%emt 0:00:02]} Rc6+ {[%emt 0:00:03]} 38. Kd2 {[%emt 0:00:02]} Kg7 {[%emt 0:00:02]} 39. Rg3+ {[%emt 0:00:03]} Kh6 {[%emt 0:00:02]} 40. Rg6+ {[%emt 0:00:10]} Kxh5 {[%emt 0:00:03]} 41. Rxc6 bxc6 {[%emt 0:00:02]} 42. Bd7 {[%emt 0:00:00]} c5 {[%emt 0:00:02]} 43. Kd3 {[%emt 0:00:00]} Kh4 {[%emt 0:00:02]} 44. Bc6 {[%emt 0:00:03]} Kg3 {[%emt 0:00:04]} 45. Bd5 {[%emt 0:00:02]} Kf3 {[%emt 0:00:02]} 46. Kc4 {[%emt 0:00:02]} Ke3 {[%emt 0:00:02]} 47. Kb5 {[%emt 0:00:02]} Bc3 {[%emt 0:00:04]} 48. Kc6 {[%emt 0:00:04]} Kd4 {[%emt 0:00:03]} 49. Kxc7 {[%emt 0:00:03]} Bb4 {[%emt 0:00:03]} 50. Kc6 {[%emt 0:00:03]} Bc3 {[%emt 0:00:03]} 51. Kb5 {[%emt 0:00:04]} Bb4 {[%emt 0:00:02]} 1/2-1/2

[Event "Djerba Festival Blitz 2025"]
[Site "Djerba"]
[Date "2025.02.21"]
[Round "5.14"]
[White "Chelly, Yahya"]
[Black "Nassr, Lina"]
[Result "1-0"]
[ECO "D60"]
[WhiteElo "2106"]
[BlackElo "1934"]
[PlyCount "115"]
[EventDate "2025.02.15"]
[EventType "swiss"]
[EventCountry "TUN"]
[TimeControl "180+3"]

1. d4 {[%emt 0:00:04]} d5 {[%emt 0:00:03]} 2. c4 {[%emt 0:00:02]} e6 {[%emt 0:00:02]} 3. Nc3 {[%emt 0:00:01]} Nf6 {[%emt 0:00:02]} 4. Nf3 {[%emt 0:00:02]} Be7 {[%emt 0:00:02]} 5. Bg5 {[%emt 0:00:02]} O-O {[%emt 0:00:03]} 6. e3 {[%emt 0:00:01]} Nbd7 {[%emt 0:00:02]} 7. Bd3 {[%emt 0:00:07]} dxc4 {[%emt 0:00:03]} 8. Bxc4 {[%emt 0:00:02]} h6 {[%emt 0:00:03]} 9. Bh4 {[%emt 0:00:03]} a6 {[%emt 0:00:01]} 10. O-O {[%emt 0:00:05]} b5 {[%emt 0:00:02]} 11. Bd3 {[%emt 0:00:02]} Bb7 {[%emt 0:00:02]} 12. a3 {[%emt 0:00:04]} c5 {[%emt 0:00:03]} 13. Qe2 {[%emt 0:00:03]} Qb6 {[%emt 0:00:12]} 14. Rad1 {[%emt 0:00:31]} Rfd8 {[%emt 0:00:15]} 15. Bb1 {[%emt 0:00:07]} cxd4 {[%emt 0:00:20]} 16. exd4 {[%emt 0:00:04]} Nf8 {[%emt 0:00:09]} 17. Ne4 {[%emt 0:01:17]} Bxe4 {[%emt 0:01:31]} 18. Bxe4 {[%emt 0:00:13]} Rac8 {[%emt 0:00:01]} 19. Bb1 {[%emt 0:00:11]} Qc6 {[%emt 0:00:19]} 20. Ne5 {[%emt 0:00:09]} Qd5 {[%emt 0:00:48]} 21. Qd3 {[%emt 0:00:11]} Qd6 {[%emt 0:00:00]} 22. Bg3 {[%emt 0:00:06]} Qb6 {[%emt 0:00:00]} 23. Kh1 {[%emt 0:00:05]} N6d7 {[%emt 0:00:00]} 24. f4 {[%emt 0:00:24]} Nf6 {[%emt 0:00:00]} 25. f5 {[%emt 0:00:05]} exf5 {[%emt 0:00:00]} 26. Qxf5 {[%emt 0:00:12]} Qe6 {[%emt 0:00:02]} 27. Qd3 {[%emt 0:00:04]} Qd5 {[%emt 0:00:06]} 28. b4 {[%emt 0:00:04]} Qe6 {[%emt 0:00:07]} 29. Qe3 {[%emt 0:00:03]} Nd5 {[%emt 0:00:04]} 30. Qd3 {[%emt 0:00:06]} Bf6 {[%emt 0:00:03]} 31. Rxf6 Nxf6 {[%emt 0:00:03]} 32. Qe3 {[%emt 0:00:05]} Nd5 {[%emt 0:00:02]} 33. Qf2 {[%emt 0:00:01]} Nc3 {[%emt 0:00:02]} 34. Re1 {[%emt 0:00:04]} Nxb1 {[%emt 0:00:03]} 35. Rxb1 {[%emt 0:00:08]} Qd5 {[%emt 0:00:04]} 36. Rf1 {[%emt 0:00:00]} f6 {[%emt 0:00:04]} 37. Nf3 {[%emt 0:00:00]} Qb3 {[%emt 0:00:02]} 38. h3 {[%emt 0:00:02]} Rc2 {[%emt 0:00:02]} 39. Qe1 {[%emt 0:00:03]} Qb2 {[%emt 0:00:02]} 40. Rg1 {[%emt 0:00:04]} Re2 {[%emt 0:00:03]} 41. Qd1 {[%emt 0:00:02]} Qc2 {[%emt 0:00:04]} 42. Qa1 {[%emt 0:00:02]} Rde8 {[%emt 0:00:03]} 43. Nh4 {[%emt 0:00:11]} Qb2 {[%emt 0:00:04]} 44. Qf1 {[%emt 0:00:00]} Rc8 {[%emt 0:00:03]} 45. Qf5 {[%emt 0:00:00]} Rcc2 {[%emt 0:00:03]} 46. Qd5+ {[%emt 0:00:00]} Kh8 {[%emt 0:00:04]} 47. Qf7 {[%emt 0:00:00]} Rc8 {[%emt 0:00:04]} 48. d5 {[%emt 0:00:15]} Rd2 {[%emt 0:00:05]} 49. d6 {[%emt 0:00:00]} Rd8 {[%emt 0:00:03]} 50. Nf5 {[%emt 0:00:00]} Rd7 {[%emt 0:00:05]} 51. Qxf8+ {[%emt 0:00:00]} Kh7 {[%emt 0:00:01]} 52. Qe8 {[%emt 0:00:01]} Qc2 {[%emt 0:00:04]} 53. Qxd7 {[%emt 0:00:14]} Rd1 {[%emt 0:00:03]} 54. Ne3 {[%emt 0:00:00]} Rxg1+ {[%emt 0:00:03]} 55. Kxg1 {[%emt 0:00:00]} Qc1+ {[%emt 0:00:02]} 56. Kf2 {[%emt 0:00:00]} Qd2+ {[%emt 0:00:02]} 57. Kf3 {[%emt 0:00:00]} Qb2 {[%emt 0:00:04]} 58. Qf5+ {[%emt 0:00:01]} 1-0

[Event "Djerba Festival Blitz 2025"]
[Site "Djerba"]
[Date "2025.02.21"]
[Round "5.15"]
[White "Minde, Baptiste"]
[Black "Kaabi, Iheb"]
[Result "1-0"]
[ECO "D02"]
[WhiteElo "1896"]
[BlackElo "1810"]
[PlyCount "59"]
[EventDate "2025.02.15"]
[EventType "swiss"]
[EventCountry "TUN"]
[TimeControl "180+3"]

1. d4 {[%emt 0:03:06]} d5 2. Bf4 Nf6 {[%emt 0:03:09]} 3. e3 e6 {[%emt 0:00:03]} 4. Nf3 {[%emt 0:00:09]} Bd6 5. Bg3 {[%emt 0:00:03]} c5 {[%emt 0:00:06]} 6. c3 {[%emt 0:00:03]} Nc6 {[%emt 0:00:03]} 7. Nbd2 {[%emt 0:00:03]} O-O {[%emt 0:00:03]} 8. Bd3 {[%emt 0:00:03]} Re8 {[%emt 0:00:03]} 9. Ne5 cxd4 {[%emt 0:00:03]} 10. exd4 {[%emt 0:00:06]} h6 {[%emt 0:00:03]} 11. O-O {[%emt 0:00:03]} Qc7 {[%emt 0:00:03]} 12. f4 {[%emt 0:00:03]} a6 {[%emt 0:00:03]} 13. Bh4 {[%emt 0:00:03]} Be7 {[%emt 0:00:03]} 14. Qf3 {[%emt 0:00:03]} b5 {[%emt 0:00:03]} 15. g4 {[%emt 0:00:03]} Nh7 {[%emt 0:00:03]} 16. Bxe7 {[%emt 0:00:03]} Nxe5 {[%emt 0:00:03]} 17. fxe5 {[%emt 0:00:03]} Rxe7 {[%emt 0:00:03]} 18. h4 {[%emt 0:00:03]} Bb7 {[%emt 0:00:03]} 19. g5 {[%emt 0:00:03]} hxg5 {[%emt 0:00:03]} 20. hxg5 {[%emt 0:00:03]} g6 {[%emt 0:00:03]} 21. Qg4 {[%emt 0:00:03]} Kg7 {[%emt 0:00:03]} 22. Kg2 {[%emt 0:00:03]} Rh8 {[%emt 0:00:03]} 23. Rh1 {[%emt 0:00:03]} Qd8 {[%emt 0:00:03]} 24. Rh3 {[%emt 0:00:03]} Ree8 {[%emt 0:00:03]} 25. Rah1 {[%emt 0:00:03]} Nxg5 {[%emt 0:00:03]} 26. Rxh8 {[%emt 0:00:03]} Rxh8 {[%emt 0:00:03]} 27. Rxh8 {[%emt 0:00:03]} Kxh8 {[%emt 0:00:03]} 28. Qh4+ {[%emt 0:00:03]} Kg7 {[%emt 0:00:03]} 29. Nf3 {[%emt 0:00:03]} b4 {[%emt 0:00:03]} 30. Nxg5 {[%emt 0:00:00]} 1-0

[Event "Djerba Festival Blitz 2025"]
[Site "Djerba"]
[Date "2025.02.21"]
[Round "5.16"]
[White "Tahir, Abderrahmane"]
[Black "Mendili, Jahed"]
[Result "1-0"]
[ECO "A08"]
[WhiteElo "1891"]
[BlackElo "1771"]
[PlyCount "63"]
[EventDate "2025.02.15"]
[EventType "swiss"]
[EventCountry "TUN"]
[TimeControl "180+3"]

1. Nf3 {[%emt 0:00:04]} d5 {[%emt 0:00:05]} 2. g3 {[%emt 0:00:01]} c5 {[%emt 0:00:02]} 3. Bg2 {[%emt 0:00:02]} Nc6 {[%emt 0:00:02]} 4. d3 {[%emt 0:00:01]} e5 {[%emt 0:00:02]} 5. Nbd2 {[%emt 0:00:02]} Nf6 {[%emt 0:00:06]} 6. e4 {[%emt 0:00:04]} h6 {[%emt 0:00:10]} 7. O-O {[%emt 0:00:05]} Be6 {[%emt 0:00:01]} 8. exd5 {[%emt 0:00:10]} Nxd5 {[%emt 0:00:03]} 9. Re1 {[%emt 0:00:01]} Bd6 {[%emt 0:00:03]} 10. Nc4 {[%emt 0:00:03]} f6 {[%emt 0:00:16]} 11. a4 {[%emt 0:00:27]} Bc7 {[%emt 0:00:03]} 12. Nfd2 {[%emt 0:02:39]} O-O {[%emt 0:00:03]} 13. Ne4 {[%emt 0:00:00]} b6 {[%emt 0:00:11]} 14. Kh1 {[%emt 0:00:00]} Qd7 {[%emt 0:00:12]} 15. Nc3 {[%emt 0:00:00]} Rad8 {[%emt 0:00:35]} 16. Nxd5 {[%emt 0:00:00]} Bxd5 {[%emt 0:00:03]} 17. Ne3 {[%emt 0:00:00]} Bxg2+ {[%emt 0:00:08]} 18. Kxg2 {[%emt 0:00:00]} Nd4 {[%emt 0:00:03]} 19. c3 {[%emt 0:00:00]} Qc6+ {[%emt 0:00:07]} 20. f3 {[%emt 0:00:00]} Ne6 {[%emt 0:00:07]} 21. Nf5 {[%emt 0:00:00]} Rf7 {[%emt 0:00:15]} 22. Qe2 {[%emt 0:00:00]} Kh8 {[%emt 0:00:33]} 23. Be3 {[%emt 0:00:00]} Rfd7 {[%emt 0:00:07]} 24. d4 {[%emt 0:00:00]} exd4 {[%emt 0:00:17]} 25. cxd4 {[%emt 0:00:00]} cxd4 {[%emt 0:00:02]} 26. Rac1 {[%emt 0:00:00]} Qxa4 {[%emt 0:00:38]} 27. Bxh6 {[%emt 0:00:00]} d3 {[%emt 0:00:05]} 28. Qxe6 {[%emt 0:00:04]} d2 {[%emt 0:00:02]} 29. Bxg7+ {[%emt 0:00:17]} Rxg7 {[%emt 0:00:05]} 30. Qxf6 {[%emt 0:00:03]} Rdd7 {[%emt 0:00:04]} 31. Re8+ {[%emt 0:00:04]} Kh7 {[%emt 0:00:02]} 32. Qh6# {[%emt 0:00:04]} 1-0

[Event "Djerba Festival Blitz 2025"]
[Site "Djerba"]
[Date "2025.02.21"]
[Round "5.17"]
[White "Filali, Razzouki Marouane"]
[Black "Saidi, Bouziane"]
[Result "1-0"]
[ECO "C51"]
[WhiteElo "2234"]
[BlackElo "1710"]
[PlyCount "77"]
[EventDate "2025.02.15"]
[EventType "swiss"]
[EventCountry "TUN"]
[TimeControl "180+3"]

1. e4 {[%emt 0:00:04]} e5 {[%emt 0:00:04]} 2. Nf3 {[%emt 0:00:00]} Nc6 {[%emt 0:00:02]} 3. Bc4 {[%emt 0:00:03]} Bc5 {[%emt 0:00:02]} 4. b4 {[%emt 0:00:02]} Bxb4 {[%emt 0:00:10]} 5. c3 {[%emt 0:00:02]} Be7 {[%emt 0:00:07]} 6. d4 {[%emt 0:00:02]} exd4 {[%emt 0:00:11]} 7. cxd4 {[%emt 0:00:03]} Bb4+ {[%emt 0:00:12]} 8. Nbd2 {[%emt 0:00:04]} d6 {[%emt 0:00:05]} 9. h3 {[%emt 0:00:05]} Nf6 {[%emt 0:00:05]} 10. d5 {[%emt 0:00:06]} Ne5 {[%emt 0:00:06]} 11. Qa4+ {[%emt 0:00:09]} Bd7 {[%emt 0:00:12]} 12. Qxb4 {[%emt 0:00:02]} b6 {[%emt 0:00:09]} 13. Nxe5 {[%emt 0:00:03]} dxe5 {[%emt 0:00:03]} 14. Ba3 {[%emt 0:00:04]} c5 {[%emt 0:00:17]} 15. dxc6 {[%emt 0:00:04]} Bxc6 {[%emt 0:00:03]} 16. O-O {[%emt 0:00:05]} Qd7 {[%emt 0:00:06]} 17. Nf3 {[%emt 0:00:08]} O-O-O {[%emt 0:00:32]} 18. Nxe5 {[%emt 0:00:04]} Qb7 {[%emt 0:00:09]} 19. Rac1 {[%emt 0:00:08]} Kb8 {[%emt 0:00:04]} 20. Nxc6+ {[%emt 0:00:34]} Qxc6 {[%emt 0:00:04]} 21. e5 {[%emt 0:00:04]} Ne4 {[%emt 0:00:17]} 22. Bd3 {[%emt 0:00:13]} Nc5 {[%emt 0:00:06]} 23. Be2 {[%emt 0:00:07]} Qe4 {[%emt 0:00:17]} 24. Bf3 {[%emt 0:00:12]} Qxb4 {[%emt 0:00:19]} 25. Bxb4 {[%emt 0:00:02]} Nd3 {[%emt 0:00:02]} 26. Bd6+ {[%emt 0:00:05]} Rxd6 {[%emt 0:00:02]} 27. exd6 {[%emt 0:00:02]} Nxc1 {[%emt 0:00:02]} 28. Rxc1 {[%emt 0:00:04]} Rd8 {[%emt 0:00:04]} 29. Rd1 {[%emt 0:00:07]} Kc8 {[%emt 0:00:05]} 30. Bc6 {[%emt 0:00:03]} f6 {[%emt 0:00:06]} 31. f4 {[%emt 0:00:04]} a6 {[%emt 0:00:13]} 32. Kf2 {[%emt 0:00:03]} b5 {[%emt 0:00:03]} 33. Ke3 {[%emt 0:00:04]} Kb8 {[%emt 0:00:02]} 34. Ke4 {[%emt 0:00:02]} g6 {[%emt 0:00:03]} 35. Kd5 {[%emt 0:00:02]} Ka7 {[%emt 0:00:03]} 36. Kc5 {[%emt 0:00:03]} h6 {[%emt 0:00:08]} 37. Re1 {[%emt 0:00:02]} a5 {[%emt 0:00:06]} 38. Re7+ {[%emt 0:00:03]} Kb8 {[%emt 0:00:02]} 39. Rb7+ {[%emt 0:00:03]} 1-0

[Event "Djerba Festival Blitz 2025"]
[Site "Djerba"]
[Date "2025.02.21"]
[Round "5.18"]
[White "Kakavand, Ramtin"]
[Black "Badya, Vasily"]
[Result "1-0"]
[ECO "B07"]
[WhiteElo "2106"]
[BlackElo "1765"]
[PlyCount "68"]
[EventDate "2025.02.15"]
[EventType "swiss"]
[EventCountry "TUN"]
[TimeControl "180+3"]

1. e4 {[%emt 0:00:04]} d6 {[%emt 0:00:03]} 2. d4 {[%emt 0:00:02]} Nf6 {[%emt 0:00:01]} 3. Bd3 {[%emt 0:00:02]} g6 {[%emt 0:00:07]} 4. c3 {[%emt 0:00:02]} Bg7 {[%emt 0:00:04]} 5. Nf3 {[%emt 0:00:02]} Bg4 {[%emt 0:00:06]} 6. Nbd2 {[%emt 0:00:03]} Nc6 {[%emt 0:00:13]} 7. h3 {[%emt 0:00:05]} Bxf3 {[%emt 0:00:03]} 8. Nxf3 {[%emt 0:00:02]} e5 {[%emt 0:00:03]} 9. Bb5 {[%emt 0:00:18]} O-O {[%emt 0:00:45]} 10. Bxc6 {[%emt 0:00:08]} bxc6 {[%emt 0:00:01]} 11. dxe5 {[%emt 0:00:02]} dxe5 {[%emt 0:00:04]} 12. Qxd8 {[%emt 0:00:06]} Raxd8 {[%emt 0:00:06]} 13. Bg5 {[%emt 0:00:12]} Rde8 {[%emt 0:00:23]} 14. Bxf6 {[%emt 0:00:05]} Bxf6 {[%emt 0:00:02]} 15. O-O-O {[%emt 0:00:03]} Rd8 {[%emt 0:00:06]} 16. Rxd8 {[%emt 0:00:05]} Rxd8 {[%emt 0:00:02]} 17. Rd1 {[%emt 0:00:02]} Rxd1+ {[%emt 0:00:06]} 18. Kxd1 {[%emt 0:00:02]} h6 {[%emt 0:00:04]} 19. Nd2 {[%emt 0:00:02]} Kf8 {[%emt 0:00:05]} 20. Nc4 {[%emt 0:00:03]} Ke7 {[%emt 0:00:07]} 21. Kc2 {[%emt 0:00:03]} Kd7 {[%emt 0:00:08]} 22. Kb3 {[%emt 0:00:02]} Bg7 {[%emt 0:00:06]} 23. Kb4 {[%emt 0:00:09]} Bf8+ {[%emt 0:00:09]} 24. Ka5 {[%emt 0:00:02]} Ke6 {[%emt 0:00:08]} 25. b4 {[%emt 0:00:03]} c5 {[%emt 0:00:04]} 26. b5 {[%emt 0:00:02]} f5 {[%emt 0:00:07]} 27. f3 {[%emt 0:00:03]} fxe4 {[%emt 0:00:23]} 28. fxe4 {[%emt 0:00:02]} Bd6 {[%emt 0:00:06]} 29. Ka6 {[%emt 0:00:06]} Kd7 {[%emt 0:00:05]} 30. Kxa7 {[%emt 0:00:04]} g5 {[%emt 0:00:05]} 31. g4 {[%emt 0:00:06]} Kc8 {[%emt 0:00:07]} 32. Nxd6+ {[%emt 0:00:03]} cxd6 {[%emt 0:00:02]} 33. b6 {[%emt 0:00:02]} d5 {[%emt 0:00:05]} 34. b7+ {[%emt 0:00:01]} Kd7 {[%emt 0:00:02]} 1-0

[Event "Djerba Festival Blitz 2025"]
[Site "Djerba"]
[Date "2025.02.21"]
[Round "5.21"]
[White "Zerarga, Imene"]
[Black "Amdouni, Zoubaier"]
[Result "0-1"]
[ECO "B35"]
[WhiteElo "1831"]
[BlackElo "2229"]
[PlyCount "56"]
[EventDate "2025.02.15"]
[EventType "swiss"]
[EventCountry "TUN"]
[TimeControl "180+3"]

1. e4 {[%emt 0:00:04]} c5 {[%emt 0:00:04]} 2. Nf3 {[%emt 0:00:00]} Nc6 {[%emt 0:00:02]} 3. d4 {[%emt 0:00:02]} cxd4 {[%emt 0:00:02]} 4. Nxd4 {[%emt 0:00:03]} g6 {[%emt 0:00:01]} 5. Nc3 {[%emt 0:00:03]} Bg7 {[%emt 0:00:02]} 6. Be3 {[%emt 0:00:05]} Nf6 {[%emt 0:00:02]} 7. f3 {[%emt 0:00:02]} O-O {[%emt 0:00:05]} 8. Bc4 {[%emt 0:03:08]} Qb6 {[%emt 0:00:04]} 9. Bb3 {[%emt 0:00:00]} Nxe4 {[%emt 0:00:03]} 10. Nxe4 {[%emt 0:00:00]} Bxd4 {[%emt 0:00:12]} 11. Bxd4 {[%emt 0:00:00]} Nxd4 {[%emt 0:00:04]} 12. Qd2 {[%emt 0:00:00]} Nxb3 {[%emt 0:00:03]} 13. axb3 {[%emt 0:00:00]} d5 {[%emt 0:00:07]} 14. Nc3 {[%emt 0:00:00]} d4 {[%emt 0:00:24]} 15. Ne4 {[%emt 0:00:00]} Bf5 {[%emt 0:00:47]} 16. O-O {[%emt 0:00:00]} d3+ {[%emt 0:00:11]} 17. Kh1 {[%emt 0:00:00]} dxc2 {[%emt 0:00:03]} 18. Qxc2 {[%emt 0:00:00]} Rac8 {[%emt 0:00:08]} 19. Qd1 {[%emt 0:00:00]} a6 {[%emt 0:00:02]} 20. Nc3 {[%emt 0:00:01]} Rfd8 {[%emt 0:00:09]} 21. Qe1 {[%emt 0:00:04]} Be6 {[%emt 0:00:12]} 22. Ra3 {[%emt 0:00:10]} Rd7 {[%emt 0:00:10]} 23. Qe4 {[%emt 0:00:09]} Rcd8 {[%emt 0:00:03]} 24. Re1 {[%emt 0:00:04]} Bxb3 {[%emt 0:00:09]} 25. Na4 {[%emt 0:00:14]} Bxa4 {[%emt 0:00:06]} 26. Rxa4 {[%emt 0:00:02]} Qxb2 {[%emt 0:00:10]} 27. Rb4 {[%emt 0:00:03]} Qf2 {[%emt 0:00:08]} 28. Rxb7 {[%emt 0:00:06]} Rxb7 {[%emt 0:00:07]} 0-1

[Event "Djerba Festival Blitz 2025"]
[Site "Djerba"]
[Date "2025.02.21"]
[Round "5.22"]
[White "Maisuradze, Nino"]
[Black "Farouz, Paul"]
[Result "1-0"]
[ECO "D31"]
[WhiteElo "2174"]
[BlackElo "1680"]
[PlyCount "97"]
[EventDate "2025.02.15"]
[EventType "swiss"]
[EventCountry "TUN"]
[TimeControl "180+3"]

1. d4 {[%emt 0:00:02]} d5 {[%emt 0:00:03]} 2. c4 {[%emt 0:00:04]} e6 {[%emt 0:00:03]} 3. Nc3 {[%emt 0:00:04]} a6 {[%emt 0:00:01]} 4. cxd5 {[%emt 0:00:14]} exd5 {[%emt 0:00:03]} 5. Qc2 {[%emt 0:00:04]} Nf6 {[%emt 0:00:15]} 6. Bg5 {[%emt 0:00:04]} c6 {[%emt 0:00:02]} 7. e3 {[%emt 0:00:03]} Be7 {[%emt 0:00:16]} 8. Bd3 {[%emt 0:00:02]} h6 {[%emt 0:00:07]} 9. Bh4 {[%emt 0:00:03]} Be6 {[%emt 0:00:04]} 10. Nge2 {[%emt 0:00:01]} Qb6 {[%emt 0:00:05]} 11. O-O {[%emt 0:00:05]} Nbd7 {[%emt 0:00:06]} 12. Kh1 {[%emt 0:00:08]} Qc7 {[%emt 0:00:06]} 13. Bg3 {[%emt 0:00:03]} Bd6 {[%emt 0:00:04]} 14. Bxd6 {[%emt 0:00:04]} Qxd6 {[%emt 0:00:02]} 15. f3 {[%emt 0:00:03]} O-O-O {[%emt 0:00:08]} 16. e4 {[%emt 0:00:06]} dxe4 {[%emt 0:00:19]} 17. fxe4 {[%emt 0:00:01]} Bg4 {[%emt 0:00:23]} 18. e5 {[%emt 0:00:15]} Nxe5 {[%emt 0:00:07]} 19. dxe5 {[%emt 0:00:06]} Qxe5 {[%emt 0:00:07]} 20. Bf5+ {[%emt 0:00:07]} Kb8 {[%emt 0:00:09]} 21. Rae1 {[%emt 0:00:07]} Qc5 {[%emt 0:00:29]} 22. h3 {[%emt 0:00:19]} h5 {[%emt 0:00:17]} 23. Ng3 {[%emt 0:00:40]} g6 {[%emt 0:00:16]} 24. Be4 {[%emt 0:00:15]} Nxe4 {[%emt 0:00:04]} 25. Ngxe4 {[%emt 0:00:06]} Qe5 {[%emt 0:00:14]} 26. Qf2 {[%emt 0:00:07]} Bf5 {[%emt 0:00:04]} 27. Ng3 {[%emt 0:00:04]} Qc7 {[%emt 0:00:10]} 28. Nxf5 {[%emt 0:00:03]} gxf5 {[%emt 0:00:02]} 29. Qf4 {[%emt 0:00:13]} Rd6 {[%emt 0:00:07]} 30. Rd1 {[%emt 0:00:05]} Rhd8 {[%emt 0:00:07]} 31. Rxd6 {[%emt 0:00:03]} Rxd6 {[%emt 0:00:03]} 32. Qxf5 {[%emt 0:00:03]} Rd2 {[%emt 0:00:09]} 33. b3 {[%emt 0:00:11]} Ka7 {[%emt 0:00:03]} 34. Qc5+ {[%emt 0:00:07]} b6 {[%emt 0:00:05]} 35. Qc4 {[%emt 0:00:03]} Qg3 {[%emt 0:00:03]} 36. Rxf7+ {[%emt 0:00:06]} Kb8 {[%emt 0:00:03]} 37. Rf8+ {[%emt 0:00:03]} Kc7 {[%emt 0:00:03]} 38. Qf7+ {[%emt 0:00:06]} Rd7 {[%emt 0:00:03]} 39. Qf4+ {[%emt 0:00:03]} Qxf4 {[%emt 0:00:03]} 40. Rxf4 {[%emt 0:00:02]} Rd2 {[%emt 0:00:03]} 41. g4 {[%emt 0:00:16]} hxg4 {[%emt 0:00:05]} 42. Rxg4 {[%emt 0:00:03]} Rc2 {[%emt 0:00:02]} 43. Rg3 {[%emt 0:00:02]} b5 {[%emt 0:00:02]} 44. a4 {[%emt 0:00:04]} b4 {[%emt 0:00:02]} 45. Ne4 {[%emt 0:00:03]} c5 {[%emt 0:00:09]} 46. h4 {[%emt 0:00:03]} c4 {[%emt 0:00:03]} 47. bxc4 Rxc4 {[%emt 0:00:03]} 48. Re3 {[%emt 0:00:06]} b3 {[%emt 0:00:03]} 49. Rc3 {[%emt 0:00:28]} 1-0

[Event "Djerba Festival Blitz 2025"]
[Site "Djerba"]
[Date "2025.02.21"]
[Round "5.23"]
[White "Chargui, Saleh"]
[Black "Rene, Benoit"]
[Result "0-1"]
[ECO "A42"]
[WhiteElo "1709"]
[BlackElo "2108"]
[PlyCount "58"]
[EventDate "2025.02.15"]
[EventType "swiss"]
[EventCountry "TUN"]
[TimeControl "180+3"]

1. d4 {[%emt 0:00:03]} g6 {[%emt 0:00:03]} 2. c4 {[%emt 0:00:01]} Bg7 {[%emt 0:00:02]} 3. Nc3 {[%emt 0:00:02]} d6 {[%emt 0:00:02]} 4. e4 {[%emt 0:00:02]} Nc6 {[%emt 0:00:02]} 5. d5 {[%emt 0:00:10]} Nd4 {[%emt 0:00:02]} 6. Be3 {[%emt 0:00:12]} c5 {[%emt 0:00:02]} 7. h3 {[%emt 0:00:14]} e5 {[%emt 0:00:18]} 8. Bd3 {[%emt 0:00:12]} Nf6 {[%emt 0:00:06]} 9. Nge2 {[%emt 0:00:10]} O-O {[%emt 0:00:03]} 10. Qd2 {[%emt 0:00:09]} a6 {[%emt 0:00:03]} 11. O-O {[%emt 0:00:24]} Rb8 {[%emt 0:00:04]} 12. f4 {[%emt 0:00:11]} Nd7 {[%emt 0:00:44]} 13. a4 {[%emt 0:00:09]} Nb3 {[%emt 0:00:03]} 14. Qc2 {[%emt 0:00:08]} Nxa1 {[%emt 0:00:02]} 15. Rxa1 {[%emt 0:00:02]} exf4 {[%emt 0:00:03]} 16. Bxf4 {[%emt 0:00:04]} Ne5 {[%emt 0:00:03]} 17. Rd1 {[%emt 0:00:15]} Bd7 {[%emt 0:00:02]} 18. b3 {[%emt 0:00:12]} Qe7 {[%emt 0:00:04]} 19. Qd2 {[%emt 0:00:10]} f5 {[%emt 0:00:10]} 20. exf5 {[%emt 0:00:07]} Nxd3 {[%emt 0:00:03]} 21. Qxd3 {[%emt 0:00:06]} Bxf5 {[%emt 0:00:03]} 22. Qg3 {[%emt 0:00:09]} Rbd8 {[%emt 0:00:09]} 23. Re1 {[%emt 0:00:05]} Rfe8 {[%emt 0:00:31]} 24. Bg5 {[%emt 0:00:14]} Bf6 {[%emt 0:00:06]} 25. Bxf6 {[%emt 0:00:06]} Qxf6 {[%emt 0:00:02]} 26. Rf1 {[%emt 0:00:12]} Qe5 {[%emt 0:00:05]} 27. Qg5 {[%emt 0:00:08]} Bd3 {[%emt 0:00:06]} 28. Qd2 {[%emt 0:00:27]} Bxe2 {[%emt 0:00:05]} 29. Nxe2 {[%emt 0:00:06]} Qxe2 {[%emt 0:00:03]} 0-1

[Event "Djerba Festival Blitz 2025"]
[Site "Djerba"]
[Date "2025.02.21"]
[Round "5.25"]
[White "Kolodner, Garry"]
[Black "Ajbara Jamal"]
[Result "0-1"]
[ECO "D17"]
[WhiteElo "1697"]
[BlackElo "1898"]
[PlyCount "46"]
[EventDate "2025.02.15"]
[EventType "swiss"]
[EventCountry "TUN"]
[TimeControl "180+3"]

1. d4 {[%emt 0:00:03]} d5 {[%emt 0:00:06]} 2. c4 {[%emt 0:00:02]} c6 {[%emt 0:00:03]} 3. Nc3 {[%emt 0:00:02]} Nf6 {[%emt 0:00:04]} 4. Nf3 {[%emt 0:00:03]} dxc4 {[%emt 0:00:04]} 5. a4 {[%emt 0:00:03]} Bf5 {[%emt 0:00:03]} 6. Bg5 {[%emt 0:00:05]} e6 {[%emt 0:00:05]} 7. Bxf6 {[%emt 0:00:04]} Qxf6 {[%emt 0:00:05]} 8. e4 {[%emt 0:00:02]} Bg4 {[%emt 0:00:05]} 9. Bxc4 {[%emt 0:00:04]} Bxf3 {[%emt 0:02:55]} 10. gxf3 {[%emt 0:00:11]} Bb4 {[%emt 0:00:03]} 11. Qd3 {[%emt 0:00:16]} Nd7 {[%emt 0:00:00]} 12. O-O-O {[%emt 0:00:08]} O-O-O {[%emt 0:00:00]} 13. Na2 {[%emt 0:00:18]} Be7 {[%emt 0:00:00]} 14. Qe2 {[%emt 0:00:36]} Nb6 {[%emt 0:00:00]} 15. Nc3 {[%emt 0:00:31]} Rxd4 {[%emt 0:00:00]} 16. Rxd4 {[%emt 0:00:04]} Qxd4 {[%emt 0:00:00]} 17. Bb3 {[%emt 0:00:01]} Qc5 {[%emt 0:00:00]} 18. Kb1 {[%emt 0:00:16]} Qb4 {[%emt 0:00:00]} 19. Bc2 {[%emt 0:00:12]} Nc4 {[%emt 0:00:00]} 20. b3 {[%emt 0:00:05]} Na3+ {[%emt 0:00:00]} 21. Kb2 {[%emt 0:00:05]} Bf6 {[%emt 0:00:00]} 22. e5 {[%emt 0:00:04]} Bxe5 {[%emt 0:00:00]} 23. Qe3 {[%emt 0:00:22]} Nc4+ {[%emt 0:00:00]} 0-1